bitfinex-derivatives/quotes_ETHF0:USTF0_20250326
["timestamp","ask_amount","ask_price","bid_price","bid_amount"]
[1743009879567,6.89646,2011.3,2011.2,0.99431]
[1743009880064,5.9022,2011.3,2011.0,0.0074625]
[1743009880264,2.37905,2011.2,2011.1,0.99433]
[1743009880666,1.3847,2011.2,2011.1,0.99433]
[1743009880957,2.37901,2011.2,2011.1,0.99433]
[1743009881168,1.3847,2011.2,2011.1,0.99433]
[1743009881359,2.37901,2011.2,2011.1,0.99433]
[1743009881658,1.3847,2011.2,2011.1,0.99433]
[1743009882164,2.37901,2011.2,2011.1,0.99433]
[1743009883051,0.99436,2011.1,2011.0,0.0074625]
[1743009883260,2.30186,2011.1,2011.0,0.0074625]
[1743009883462,2.30186,2011.1,2011.0,1.0018725]
[1743009884961,2.30186,2011.1,2011.0,0.0074625]
[1743009885461,2.30186,2011.1,2011.0,1.0018725]
[1743009888363,0.99455,2010.8,2010.6,3.2078]
[1743009888569,0.9945,2010.8,2010.7,1.3501]
[1743009888962,2.4171,2010.8,2010.7,2.34465]
[1743009889161,2.4171,2010.8,2010.7,1.3501]
[1743009889362,2.4171,2010.8,2010.7,2.34465]
[1743009890572,2.4171,2010.8,2010.7,1.3501]
[1743009892675,1.4226,2010.8,2010.5,0.0074625]
[1743009892880,0.9946,2010.6,2010.5,2.3781925]
[1743009893277,2.3932,2010.6,2010.5,2.3781925]
[1743009893985,1.3986,2010.6,2010.5,2.3781925]
[1743009894377,2.3932,2010.6,2010.5,2.3781925]
[1743009895986,3.88522,2010.6,2009.9,3.2078]
[1743009896283,4.20258,2010.3,2010.0,1.3723]
[1743009896477,1.3634,2010.2,2010.1,0.99482]
[1743009896683,0.99466,2010.5,2010.1,2.8625529]
[1743009896882,1.3634,2010.5,2010.4,0.99469]
[1743009897072,4.2024,2010.6,2010.5,0.99465]
[1743009897478,3.2078,2010.6,2010.5,0.99465]
[1743009897980,3.2078,2010.6,2010.5,1.64815]
[1743009898181,4.2024,2010.6,2010.5,1.64815]
[1743009898377,0.0074625,2010.7,2010.6,0.9946]
[1743009898573,0.0074625,2010.7,2010.6,2.3999]
[1743009898773,1.0020125,2010.7,2010.6,2.3999]
[1743009899086,2.3202125,2010.7,2010.6,1.4053]
[1743009899288,2.3202125,2010.7,2010.6,2.3999]
[1743009899989,1.3256625,2010.7,2010.6,2.3999]
[1743009900285,2.3202125,2010.7,2010.6,1.4053]
[1743009900585,1.3256625,2010.7,2010.6,2.3999]
[1743009900788,2.3202125,2010.7,2010.6,1.4053]
[1743009900982,1.3256625,2010.7,2010.6,2.3999]
[1743009901181,0.0074625,2010.7,2010.6,2.3999]
[1743009901678,1.4212625,2010.7,2010.6,2.3999]
[1743009901884,2.4158125,2010.7,2010.6,2.3999]
[1743009902079,1.4212625,2010.7,2010.6,2.3999]
[1743009903883,0.0074625,2010.7,2010.6,2.3999]
[1743009905589,1.3498625,2010.7,2010.6,2.3999]
[1743009907995,2.3444125,2010.7,2010.6,2.3999]
[1743009909493,2.3444125,2010.7,2010.6,1.4053]
[1743009909792,2.3444125,2010.7,2010.6,2.3999]
[1743009909989,2.3444125,2010.7,2010.6,1.4053]
[1743009910492,2.3444125,2010.7,2010.6,2.3999]
[1743009911589,1.3498625,2010.7,2010.3,0.6963]
[1743009911785,5.2271,2010.6,2010.4,0.99469]
[1743009911983,3.00118,2010.5,2010.4,0.9947]
[1743009912186,2.0065,2010.5,2010.4,0.9947]
[1743009913595,0.0074625,2010.7,2010.6,0.9946]
[1743009913596,1.0020525,2010.7,2010.6,0.9946]
[1743009913894,1.0020525,2010.7,2010.5,0.99461]
[1743009913895,0.99461,2010.6,2010.5,0.99461]
[1743009914089,0.99461,2010.6,2010.4,3.2078]
[1743009914090,1.3859625,2010.7,2010.4,3.2078]
[1743009914387,2.3805525,2010.7,2010.6,0.9946]
[1743009914594,0.9946,2010.6,2010.5,1.65842]
[1743009914899,1.3785,2010.6,2010.2,3.3104625]
[1743009915198,0.6934,2010.5,2010.2,3.9587625]
[1743009915498,2.0534,2010.4,2010.3,0.9947]
[1743009916786,3.0481,2010.4,2010.3,0.9947]
[1743009916992,2.0534,2010.4,2010.3,0.9947]
[1743009917194,3.04813,2010.4,2010.3,0.99475]
[1743009917392,0.99475,2010.3,2010.2,0.6557625]
[1743009917599,2.34655,2010.3,2010.2,1.6505625]
[1743009917788,1.3518,2010.3,2010.2,1.6505625]
[1743009918111,2.34655,2010.3,2010.2,1.6505625]
[1743009918595,1.3518,2010.3,2010.2,1.6505625]
[1743009919198,2.34655,2010.3,2010.2,0.0074625]
[1743009919592,5.55435,2010.3,2010.2,0.0074625]
[1743009920195,7.0466,2010.3,2009.7,0.6586]
[1743009920392,0.99496,2009.9,2009.8,0.995]
[1743009921193,0.99495,2009.9,2009.8,0.995]
[1743009921391,0.99495,2009.9,2009.7,1.3571]
[1743009921591,2.36355,2009.9,2009.7,2.35212]
[1743009921893,1.3686,2009.9,2009.8,0.995]
[1743009922401,4.90374,2010.0,2009.9,0.99495]
[1743009922694,3.9088,2010.0,2009.8,0.99496]
[1743009922896,0.99495,2009.9,2009.8,0.99496]
[1743009923196,0.995,2009.8,2009.7,0.6985]
[1743009923392,1.3328,2009.9,2009.6,0.99508]
[1743009923597,1.3328,2009.7,2009.6,0.99508]
[1743009923993,1.3328,2009.7,2009.6,4.20288]
[1743009924491,2.32785,2009.7,2009.6,3.2078]
[1743009924685,2.32785,2009.7,2009.3,4.20303]
[1743009924686,0.99518,2009.5,2009.3,4.20303]
[1743009924891,1.6765,2009.4,2009.3,4.20303]
[1743009925096,3.0093,2009.4,2009.3,4.20303]
[1743009925296,2.0141,2009.4,2009.3,3.2078]
[1743009925497,3.0093,2009.4,2009.2,0.6819]
[1743009925698,1.3328,2009.3,2009.2,1.67718]
[1743009926198,9.65093,2009.3,2008.6,3.2078]
[1743009926389,3.2078,2009.1,2008.6,2.31157]
[1743009926588,3.2078,2009.1,2008.4,11.6188508]
[1743009926589,1.3875,2009.0,2008.4,11.6188508]
[1743009926794,1.3875,2009.0,2008.3,4.2439646]
[1743009926795,0.99569,2008.4,2008.3,3.2078]
[1743009927094,3.2078,2008.5,2008.3,0.99572]
[1743009927290,1.3875,2008.4,2008.3,0.99574]
[1743009927698,1.3875,2008.4,2008.3,3.2078]
[1743009927893,1.3875,2008.4,2008.3,4.20354]
[1743009928091,0.0074625,2008.6,2008.5,0.99564]
[1743009928786,0.0074625,2008.6,2008.5,2.31164]
[1743009929693,1.3050625,2008.6,2008.5,43.11164]
[1743009930297,0.0074625,2008.6,2008.5,43.11164]
[1743009930899,0.0074625,2008.6,2008.5,0.99564]
[1743009931200,1.3050625,2008.6,2008.5,0.99564]
[1743009932289,1.3050625,2008.6,2008.1,0.6961]
[1743009932496,0.99574,2008.3,2008.2,2.36279]
[1743009932697,0.99574,2008.3,2008.2,1.367]
[1743009932992,5.458,2008.4,2008.1,0.99582]
[1743009933199,2.42581,2008.2,2008.0,0.99586]
[1743009933398,1.43,2008.2,2008.1,0.99584]
[1743009933601,0.99584,2008.1,2008.0,2.36288]
[1743009933792,0.99584,2008.1,2008.0,1.367]
[1743009934093,0.99596,2007.9,2007.5,2.4903]
[1743009934295,0.99596,2007.9,2007.7,0.99603]
[1743009934488,1.43,2007.8,2007.7,0.99603]
[1743009934897,0.714,2007.9,2007.8,0.99599]
[1743009935196,1.70994,2007.9,2007.7,2.33551]
[1743009935398,1.3384,2007.8,2007.7,2.33551]
[1743009936000,2.33439,2007.8,2007.7,1.3395]
[1743009936303,1.3384,2007.8,2007.7,2.33554]
[1743009936903,2.33439,2007.8,2007.7,2.33554]
[1743009937099,2.33439,2007.8,2007.7,1.3395]
[1743009937290,1.3384,2007.8,2007.7,2.33554]
[1743009937493,0.714,2007.9,2007.8,0.99599]
[1743009937693,2.0524,2007.9,2007.8,0.99599]
[1743009937892,3.04834,2007.9,2007.8,0.99599]
[1743009939002,3.04834,2007.9,2007.7,1.3395]
[1743009939201,0.99599,2007.8,2007.7,1.3395]
[1743009939402,1.3428,2007.8,2007.7,2.33553]
[1743009939993,1.3428,2007.8,2007.4,2.49045]
[1743009939994,4.5506,2007.8,2007.0,3.2078]
[1743009940191,13.7046,2007.8,2007.3,1.2978]
[1743009940401,16.19459,2007.8,2007.4,0.99619]
[1743009940701,16.19459,2007.8,2007.3,1.2978]
[1743009940911,0.99614,2007.5,2007.4,0.99619]
[1743009941203,0.99614,2007.5,2007.0,3.2078]
[1743009941204,0.99644,2006.9,2006.8,0.3961998]
[1743009941506,3.2078,2005.2,2004.9,64.76285453]
[1743009941693,0.99738,2005.0,2004.9,64.76285453]
[1743009941894,4.68738,2005.0,2004.9,64.76285453]
[1743009942098,3.2078,2005.2,2004.9,64.76285453]
[1743009942400,3.21528148,2005.2,2004.9,66.32285453]
[1743009942699,0.62157477,2908.8,2005.6,2.49263]
[1743009942700,3.2078,2006.2,2005.6,2.49263]
[1743009942898,3.2078,2006.2,2005.7,14.76527441]
[1743009943095,3.2078,2006.2,2005.8,2.3523]
[1743009943296,3.2078,2006.2,2005.9,1.3554]
[1743009943297,0.99688,2006.0,2005.9,1.3554]
[1743009943504,5.69986,2006.2,2005.6,0.9969]
[1743009943505,9.0378,2006.2,2005.6,0.9969]
[1743009943701,3.874,2006.1,2005.7,5.70028]
[1743009943896,4.87083,2006.1,2006.0,0.99688]
[1743009944097,3.874,2006.1,2006.0,0.99688]
[1743009944298,3.874,2006.1,2005.8,17.25770441]
[1743009944299,3.874,2006.1,2005.9,1.3353]
[1743009944501,4.95962278,2006.1,2006.0,0.99688]
[1743009944804,3.874,2006.1,2006.0,0.99688]
[1743009945311,4.29170438,2006.1,2006.0,0.99688]
[1743009945803,0.41770438,2006.1,2006.0,16.75905441]
[1743009946302,1.41453438,2006.1,2006.0,1.3353]
[1743009946502,4.62233438,2006.1,2006.0,1.3353]
[1743009946903,0.00748148,2006.2,2006.1,0.99683]
[1743009947103,5.69904,2006.8,2006.1,18.32426441]
[1743009947104,5.69906,2006.8,2006.1,18.32426441]
[1743009947303,2.49135,2006.7,2006.3,0.9969]
[1743009947496,3.2078,2006.8,2006.5,0.9969]
[1743009947703,3.2078,2006.8,2006.4,20.46479441]
[1743009948006,4.20431,2006.8,2006.7,0.99654]
[1743009948214,0.00748148,2006.8,2006.7,0.9969]
[1743009948403,0.00748148,2006.8,2006.7,16.75871441]
[1743009949202,2.49048,2007.4,2006.7,15.84217441]
[1743009949410,0.99634,2007.1,2007.0,0.9969]
[1743009949611,4.20412,2007.2,2007.1,0.99634]
[1743009949907,4.20409,2007.2,2007.1,0.99634]
[1743009950109,3.2078,2007.2,2007.1,15.76161441]
[1743009950306,3.2078,2007.5,2007.4,0.99619]
[1743009950512,0.99619,2007.4,2007.3,3.42622]
[1743009950698,3.2078,2007.5,2007.4,16.75836441]
[1743009950902,3.2078,2007.5,2007.4,18.19146441]
[1743009951098,0.00748148,2007.7,2007.6,0.99609]
[1743009951510,0.00748148,2007.7,2007.6,15.76136441]
[1743009952008,0.65112345,2007.7,2007.6,16.75826441]
[1743009952901,0.99609,2007.6,2007.5,0.99611]
[1743009953104,0.99609,2007.6,2007.5,1.4331]
[1743009953305,2.06493197,2007.6,2007.5,1.4331]
[1743009955014,2.06493197,2007.6,2007.5,2.42924]
[1743009956704,0.99634,2007.2,2007.1,0.99631]
[1743009956915,3.2078,2007.2,2007.1,0.99631]
[1743009957116,3.922,2007.3,2007.2,0.99629]
[1743009957312,0.64364197,2007.6,2007.5,0.99614]
[1743009957516,0.00748148,2007.7,2007.6,0.99609]
[1743009957706,0.00748148,2007.7,2007.6,16.75826441]
[1743009957913,0.00748148,2007.7,2007.6,16.81826441]
[1743009958118,0.00748148,2007.7,2007.6,16.75826441]
[1743009958316,3.21528148,2007.7,2007.6,37.30324769]
[1743009958515,4.21132148,2007.7,2007.6,37.30324769]
[1743009958816,3.21528148,2007.7,2007.4,0.6856]
[1743009959015,0.99609,2007.6,2007.5,15.76217441]
[1743009959221,1.39246393,2007.6,2007.5,16.75831441]
[1743009959521,1.39246393,2007.6,2007.5,14.76527441]
[1743009959917,1.39246393,2007.6,2007.5,16.15197441]
[1743009961016,0.99633,2007.2,2006.9,7.48046148]
[1743009961319,0.99634,2007.1,2007.0,16.40867441]
[1743009961513,3.60417393,2007.1,2007.0,16.40816441]
[1743009961718,3.60417393,2007.1,2007.0,17.40506441]
[1743009961918,0.99639,2007.0,2006.9,1.00389148]
[1743009962118,4.60053393,2007.1,2007.0,0.99639]
[1743009962312,3.2078,2007.1,2007.0,0.99639]
[1743009962524,3.2078,2007.1,2007.0,18.13486441]
[1743009962911,3.6050569,2007.1,2007.0,18.13486441]
[1743009963129,0.3972569,2007.1,2007.0,21.34266441]
[1743009963332,0.3972569,2007.1,2007.0,18.13486441]
[1743009964125,0.3972569,2007.1,2007.0,19.31486441]
[1743009964433,0.3972569,2007.1,2007.0,18.13486441]
[1743009964625,0.3972569,2007.1,2007.0,18.19486441]
[1743009966133,3.2078,2007.4,2007.3,0.99624]
[1743009966333,3.2078,2007.4,2007.3,1.99314]
[1743009966629,4.20399,2007.4,2007.3,16.75841441]
[1743009966834,3.2078,2007.4,2007.3,16.75841441]
[1743009968029,4.21134148,2007.7,2007.3,18.02841441]
[1743009968232,4.21132148,2007.7,2007.6,0.99609]
[1743009968435,0.99611,2007.6,2007.4,17.07097441]
[1743009968733,0.99614,2007.5,2007.4,1.3088]
[1743009968938,1.4195,2007.5,2007.4,1.3088]
[1743009969128,4.39536306,2007.7,2007.6,0.99609]
[1743009969525,3.21528148,2007.7,2007.6,0.99609]
[1743009969933,4.21132148,2007.7,2007.6,0.99609]
[1743009970131,9.61504148,2007.7,2007.4,1.3088]
[1743009970329,9.61504148,2007.7,2006.9,0.00748148]
[1743009970330,0.99639,2007.0,2006.9,0.00748148]
[1743009970530,0.99639,2007.0,2006.9,2.39012148]
[1743009970531,3.2078,2007.0,2006.9,2.39012148]
[1743009971031,3.2078,2007.3,2007.2,0.99629]
[1743009971227,9.727,2007.5,2007.4,0.99619]
[1743009971429,4.89314,2007.5,2007.4,0.99619]
[1743009971629,3.2078,2007.6,2007.5,0.99614]
[1743009971828,3.2078,2007.6,2007.5,17.16501441]
[1743009972824,4.20389,2007.6,2007.5,2.39974]
[1743009973028,3.2078,2007.6,2007.5,17.16501441]
[1743009973627,3.2078,2007.6,2007.5,18.16191441]
[1743009973940,5.83748148,2007.7,2007.6,0.99609]
[1743009973941,0.00748148,2007.7,2007.6,0.99609]
[1743009974142,0.00748148,2007.7,2007.6,17.41256441]
[1743009974434,5.83,2008.2,2008.0,0.99586]
[1743009974626,0.99579,2008.2,2008.1,2.39624]
[1743009974832,3.2078,2008.2,2008.1,2.39624]
[1743009975033,3.2078,2008.2,2008.1,17.16151441]
[1743009975240,3.2078,2008.2,2008.1,18.15841441]
[1743009975542,4.20359,2008.2,2008.1,18.15841441]
[1743009975734,4.20359,2008.2,2008.1,1.4004]
[1743009975930,4.20359,2008.2,2008.1,2.39624]
[1743009976131,3.2078,2008.2,2008.1,18.15841441]
[1743009976532,4.20359,2008.2,2008.1,2.39624]
[1743009976933,4.20359,2008.2,2008.1,1.4004]
[1743009978037,5.55979,2008.2,2008.1,1.4004]
[1743009978337,5.94442895,2008.2,2008.1,2.39624]
[1743009978637,4.58822895,2008.2,2008.1,18.15841441]
[1743009978939,3.59243895,2008.2,2008.1,18.15841441]
[1743009979236,4.58822895,2008.2,2008.1,18.15841441]
[1743009979638,4.58822895,2008.2,2008.1,17.16257441]
[1743009979832,4.58822895,2008.2,2008.1,18.15841441]
[1743009979833,3.59243895,2008.2,2008.1,18.15841441]
[1743009980039,4.58822895,2008.2,2008.1,18.15841441]
[1743009980734,4.58822895,2008.2,2008.1,18.80891441]
[1743009980935,3.59243895,2008.2,2008.1,18.80891441]
[1743009981246,0.38463895,2008.2,2008.1,18.80891441]
[1743009981630,0.00748148,2008.4,2008.3,0.99574]
[1743009981840,0.00748148,2008.4,2008.3,1.99264]
[1743009982039,15.19725799,2008.6,2008.5,0.99564]
[1743009982342,32.29417323,2008.7,2008.6,0.99559]
[1743009982541,32.29417323,2008.7,2008.6,18.07346441]
[1743009982741,32.29417323,2008.7,2008.6,25.19346441]
[1743009983048,10.67566995,2008.7,2008.6,25.19346441]
[1743009983238,5.35514951,2008.9,2008.8,1.99239]
[1743009983432,3.20054951,2008.9,2008.8,1.99239]
[1743009984440,3.20054951,2008.9,2008.8,10.53019]
[1743009984845,3.20054951,2008.9,2008.8,5.20019]
[1743009985037,3.20054951,2008.9,2008.8,1.99239]
[1743009985436,3.20054951,2008.9,2008.8,7.20019]
[1743009985638,3.20054951,2008.9,2008.8,5.20019]
[1743009985841,3.20054951,2008.9,2008.8,2.30239]
[1743009986045,3.20054951,2008.9,2008.8,5.20019]
[1743009986046,0.00748148,2008.9,2008.8,5.20019]
[1743009986248,0.00748148,2008.9,2008.8,1.99239]
[1743009986446,0.00748148,2008.9,2008.8,4.60329]
[1743009986745,6.5254,2009.6,2009.2,2.48825]
[1743009986938,0.99519,2009.5,2009.4,1.9582454]
[1743009987138,6.5254,2009.6,2009.4,1.9582454]
[1743009987139,7.52052,2009.6,2009.4,0.9630554]
[1743009987347,7.52052,2009.6,2009.4,1.9582154]
[1743009987646,7.52054,2009.6,2009.5,0.99515]
[1743009988037,2.0868,2009.6,2009.5,0.99515]
[1743009988437,3.0819,2009.6,2009.4,0.9630554]
[1743009988750,0.99515,2009.5,2009.4,0.9630554]
[1743009988952,1.3914,2009.5,2009.4,1.9582554]
[1743009989249,1.3914,2009.5,2009.4,2.9551554]
[1743009989440,1.3914,2009.5,2009.4,4.2954554]
[1743009990744,0.6954,2009.6,2009.5,0.99515]
[1743009990949,1.31446144,2009.7,2009.6,0.9951]
[1743009991141,1.31446144,2009.7,2009.6,1.992]
[1743009993147,1.31446144,2009.7,2009.6,1.992]
[1743009995952,1.31446144,2009.7,2009.6,0.9951]
[1743009996254,4.52226144,2009.7,2009.6,0.9951]
[1743010000051,5.51732144,2009.7,2009.5,0.99511]
[1743010000356,0.9951,2009.6,2009.5,0.99511]
[1743010000548,1.3193,2009.6,2009.5,0.99511]
[1743010002154,2.3144,2009.6,2009.5,0.99511]
[1743010002852,1.3193,2009.6,2009.5,0.99511]
[1743010003659,1.3193,2009.6,2009.5,1.99201]
[1743010003862,1.3193,2009.6,2009.5,3.33831]
[1743010006356,1.3193,2009.6,2009.5,5.81831]
[1743010006564,0.00486144,2009.7,2009.6,0.9951]
[1743010006758,0.00486144,2009.7,2009.6,1.992]
[1743010007151,0.00486144,2009.7,2009.6,5.1998]
[1743010007460,0.00486144,2009.7,2009.6,1.992]
[1743010008253,0.00486144,2009.7,2009.6,5.1998]
[1743010009564,0.00486144,2009.7,2009.6,1.992]
[1743010009952,0.00486144,2009.7,2009.6,5.1998]
[1743010011467,0.00486144,2009.7,2009.6,1.992]
[1743010011661,0.00486144,2009.7,2009.6,5.1998]
[1743010011865,0.00486144,2009.7,2009.6,1.992]
[1743010015661,3.6123,2010.0,2009.6,1.992]
[1743010015662,3.2078,2010.0,2009.6,1.992]
[1743010015965,5.83,2010.5,2010.1,0.99485]
[1743010015966,1.3395,2010.2,2010.1,0.99485]
[1743010016668,1.3395,2010.2,2010.1,1.96989263]
[1743010017965,1.3395,2010.2,2010.1,2.96679263]
[1743010018266,0.7079,2010.4,2010.3,0.99475]
[1743010018469,0.7079,2010.4,2010.3,1.99165]
[1743010018667,1.10823006,2010.8,2010.4,2.4867]
[1743010018972,2.31539,2010.7,2010.5,0.99465]
[1743010019273,2.31536,2010.7,2010.6,0.9946]
[1743010019672,2.31536,2010.7,2010.5,0.99461]
[1743010019872,1.3208,2010.7,2010.6,0.9946]
[1743010020173,2.31539,2010.7,2010.6,2.08191563]
[1743010020765,2.31539,2010.7,2010.6,0.9946]
[1743010021274,2.31539,2010.7,2010.6,1.94420146]
[1743010021573,2.31535,2010.7,2010.6,1.94420146]
[1743010021766,1.3208,2010.7,2010.6,1.94420146]
[1743010021968,2.31535,2010.7,2010.6,1.94420146]
[1743010024276,2.31535,2010.7,2010.6,0.9946]
[1743010024772,2.31535,2010.7,2010.6,1.91328649]
[1743010025373,2.31535,2010.7,2010.6,0.91868649]
[1743010025576,0.99465,2010.5,2010.4,0.0074625]
[1743010025776,4.20245,2010.5,2010.4,0.0074625]
[1743010025973,4.20245,2010.5,2010.4,1.0021625]
[1743010026174,6.01137,2010.7,2010.6,0.9946]
[1743010026371,1.3208,2010.7,2010.6,1.9915]
[1743010026569,0.6847,2010.8,2010.7,0.99455]
[1743010026771,1.9792,2010.8,2010.7,3.40975]
[1743010027268,6.1815,2010.8,2010.7,2.4152]
[1743010027469,0.99455,2010.7,2010.6,1.02127146]
[1743010027771,2.28905,2010.7,2010.6,2.01587146]
[1743010028075,1.2945,2010.7,2010.6,3.01277146]
[1743010029864,2.28905,2010.7,2010.6,2.01817146]
[1743010030177,2.28905,2010.7,2010.6,1.02127146]
[1743010031074,0.99465,2010.5,2010.4,0.0074625]
[1743010031274,4.20245,2010.5,2010.4,0.0074625]
[1743010032774,4.20245,2010.5,2010.2,0.98396004]
[1743010032775,0.99475,2010.3,2010.2,0.98396004]
[1743010032969,2.48711,2010.2,2009.8,0.99495]
[1743010033274,0.99498,2009.9,2009.8,0.99495]
[1743010033466,0.99498,2009.9,2009.8,1.99185]
[1743010033672,0.99504,2009.8,2009.7,0.99502]
[1743010033880,0.99504,2009.8,2009.7,2.9191245]
[1743010034386,2.35304,2009.8,2009.7,1.9241045]
[1743010034574,8.18304,2009.8,2009.7,0.9272045]
[1743010034777,0.9951,2009.6,2009.5,1.03551422]
[1743010034978,4.2029,2009.6,2009.5,1.03551422]
[1743010035283,5.5609,2009.6,2009.5,1.03551422]
[1743010035485,0.9953,2009.2,2009.1,0.99531]
[1743010035778,0.9953,2009.2,2009.1,1.94416692]
[1743010035981,0.99529,2009.3,2009.2,0.99527]
[1743010036178,0.99529,2009.3,2009.2,0.9969]
[1743010036482,0.99529,2009.3,2009.1,1.94416692]
[1743010036483,0.9953,2009.2,2009.1,0.94885692]
[1743010036681,2.3634,2009.2,2009.1,1.94575692]
[1743010036976,1.3681,2009.2,2009.1,2.94110692]
[1743010037174,8.96599,2009.5,2009.1,2.94110692]
[1743010037175,6.4781,2009.5,2009.2,0.9953]
[1743010037379,1.3681,2009.3,2009.2,0.9953]
[1743010037578,2.36335,2009.3,2009.2,0.9953]
[1743010037777,2.36335,2009.3,2009.2,0.9969]
[1743010037971,1.3681,2009.3,2009.2,0.9953]
[1743010038178,1.3681,2009.3,2009.2,1.9922]
[1743010038376,3.2078,2009.4,2009.2,0.9969]
[1743010038583,7.1869,2009.5,2009.4,0.9952]
[1743010038778,7.1869,2009.5,2009.4,1.9921]
[1743010040474,1.3569,2009.5,2009.4,0.9969]
[1743010040677,0.99525,2009.3,2009.2,1.6647]
[1743010040983,0.99525,2009.3,2009.2,0.6694]
[1743010041174,0.99525,2009.3,2009.2,1.6663]
[1743010041377,2.35215,2009.3,2009.2,1.6663]
[1743010041573,2.35215,2009.3,2009.2,2.6616]
[1743010041776,1.3569,2009.3,2009.2,2.6616]
[1743010043084,0.99518,2009.5,2009.4,0.9952]
[1743010043284,0.99512,2009.6,2009.4,0.9969]
[1743010043486,0.99512,2009.6,2009.5,0.9969]
[1743010043888,0.9952,2009.4,2009.3,0.99521]
[1743010044080,2.48782,2009.6,2009.1,0.94885692]
[1743010044280,0.99525,2009.3,2009.2,0.9969]
[1743010044475,0.99525,2009.3,2009.2,1.9922]
[1743010044781,4.20303,2009.4,2009.2,1.9922]
[1743010044981,1.3665,2009.3,2009.2,0.9953]
[1743010045182,3.2078,2009.4,2009.3,1.99215]
[1743010045785,0.99512,2009.6,2009.3,0.9969]
[1743010045984,0.99512,2009.6,2009.5,0.99513]
[1743010046384,4.67712,2009.6,2009.5,0.99513]
[1743010046582,6.04362,2009.6,2009.5,0.99513]
[1743010046991,2.36162,2009.6,2009.5,0.99513]
[1743010047185,0.99525,2009.4,2009.3,0.99522]
[1743010047394,0.99528,2009.3,2009.2,0.99525]
[1743010047595,2.36178,2009.3,2009.2,0.99525]
[1743010047785,2.36178,2009.3,2009.2,1.99215]
[1743010047991,1.3665,2009.3,2009.2,1.99215]
[1743010048900,2.36175,2009.3,2009.2,1.99215]
[1743010049699,1.3665,2009.3,2009.2,1.99215]
[1743010049899,2.36175,2009.3,2009.2,1.99215]
[1743010050094,1.3665,2009.3,2009.2,1.99215]
[1743010050795,3.21519923,2010.1,2010.0,0.9949]
[1743010051097,3.21519923,2010.1,2010.0,1.9918]
[1743010051098,0.00739923,2010.1,2010.0,1.9918]
[1743010051601,5.83,2010.2,2010.1,0.99485]
[1743010051792,5.83,2010.2,2010.1,1.99175]
[1743010053402,0.0074625,2010.4,2010.3,0.99475]
[1743010053598,0.0074625,2010.4,2010.3,1.99165]
[1743010056187,0.0074625,2010.4,2010.3,3.42145]
[1743010059912,0.0074625,2010.4,2010.0,1.03692045]
[1743010060104,0.99477,2010.3,2010.1,0.9969]
[1743010060305,1.4039,2010.2,2010.1,1.99171]
[1743010061299,3.2152625,2010.4,2010.3,0.99475]
[1743010061495,3.2152625,2010.4,2010.3,1.99165]
[1743010062305,0.0074625,2010.4,2010.3,1.99165]
[1743010064209,0.0074625,2010.4,2010.3,3.99165]
[1743010068417,3.2078,2010.8,2010.3,5.4969]
[1743010068614,0.695,2011.0,2010.9,0.99446]
[1743010068812,1.68941,2011.0,2010.9,0.99446]
[1743010069517,0.695,2011.0,2010.9,0.99446]
[1743010069714,1.68941,2011.0,2010.9,0.99446]
[1743010069921,0.695,2011.0,2010.9,0.99446]
[1743010070518,1.68941,2011.0,2010.9,2.06159371]
[1743010071121,1.68941,2011.0,2010.9,1.06713371]
[1743010071413,1.68941,2011.0,2010.9,2.06159371]
[1743010072122,0.695,2011.0,2010.9,2.06159371]
[1743010076128,1.317,2011.0,2010.9,3.05849371]
[1743010077425,1.317,2011.0,2010.9,3.72749371]
[1743010077628,0.99429,2011.3,2011.2,0.99431]
[1743010078832,2.39029,2011.3,2011.2,0.99431]
[1743010079031,0.99432,2011.2,2011.1,0.99432]
[1743010079329,2.39032,2011.2,2011.1,1.99122]
[1743010079626,2.39032,2011.2,2011.1,0.99432]
[1743010080124,1.396,2011.2,2011.0,0.0074625]
[1743010080327,4.20216,2011.1,2011.0,0.0074625]
[1743010081835,0.99441,2011.0,2010.9,1.06713371]
[1743010082033,0.99464,2010.6,2010.5,0.99464]
[1743010082330,0.99464,2010.6,2010.5,3.06664967]
[1743010082628,5.56998,2010.7,2010.6,0.9946]
[1743010083126,5.56998,2010.7,2010.5,2.06972967]
[1743010083127,0.9946,2010.6,2010.5,2.06972967]
[1743010083326,0.9946,2010.6,2010.5,3.06662967]
[1743010083327,2.3622,2010.6,2010.5,3.06662967]
[1743010083632,2.3622,2010.6,2010.5,2.07200967]
[1743010084025,2.3622,2010.6,2010.5,3.06665967]
[1743010084531,2.3622,2010.6,2010.5,1.07510967]
[1743010084721,0.9947,2010.4,2010.3,0.8328407]
[1743010084925,4.2025,2010.4,2010.3,1.7631593]
[1743010085622,4.2025,2010.4,2010.3,2.7579093]
[1743010086231,3.2078,2010.4,2010.3,2.7579093]
[1743010086421,5.9432,2010.6,2010.5,0.99465]
[1743010086619,2.3622,2010.6,2010.5,1.99155]
[1743010089635,2.3622,2010.6,2010.5,2.05243986]
[1743010089930,2.3622,2010.6,2010.5,1.05778986]
[1743010090932,2.3622,2010.6,2010.5,2.05243986]
[1743010092326,2.3622,2010.6,2010.5,1.05778986]
[1743010092836,2.3622,2010.6,2010.5,2.05243986]
[1743010093028,2.3622,2010.6,2010.5,1.05778986]
[1743010093726,2.3622,2010.6,2010.5,2.05243986]
[1743010093927,2.3622,2010.6,2010.5,1.05778986]
[1743010094127,2.3622,2010.6,2010.5,2.05243986]
[1743010094337,2.3622,2010.6,2010.5,3.38283986]
[1743010095034,2.3622,2010.6,2010.5,2.05243986]
[1743010095537,1.3676,2010.6,2010.5,2.05243986]
[1743010095730,2.3622,2010.6,2010.5,2.05243986]
[1743010095930,1.3676,2010.6,2010.5,2.05243986]
[1743010096738,0.99451,2010.8,2010.7,0.99455]
[1743010096931,2.40381,2010.8,2010.7,1.99145]
[1743010097434,2.40381,2010.8,2010.7,2.05233986]